Cogmind - Beta 13 @@@ ROGUE MODE // 2024.06.05 @ 04:09:17 Player: A Moose Result: Core destroyed Performance ------------- Evolutions (5) 2500 Regions Visited (21) 4200 Robots Destroyed (296) 1480 Value Destroyed (17242) 17242 Prototype IDs (46) 920 Alien Tech Used (1) 200 Bonus (8299) 8299 TOTAL SCORE: 34841 Bonus ------- High Alert Combat Kills 5827 Follower Combat Kills 690 Entered Garrisons 1000 Aligned with FarCom 300 Met Data Miner 300 Acquired ECA 300 Friendly Fire -118 Cogmind --------- Core Integrity 0/1000 Matter 265/300 Energy 40/100 System Corruption 18% Temperature Cool (0) Movement Core (1350) Ox26 Location -5/Factory Parts ------- > --- POWER (1) -------- (None) > --- PROPULSION (2) --- (None) > --- UTILITY (9) ------ Huge Storage Unit Core Analyzer Advanced System Shield > --- WEAPON (5) ------- (None) > --- INVENTORY (25) --- Wheel Huge Storage Unit High-capacity Matter Pod (200) Matter Compressor (250) Experimental Sensor Array Encrypted Comm Array Improved Target Analyzer Improved Thermal Shield Improved Shock Absorption System Advanced System Shield Authchip [R/Combat] Authchip [R/Combat] Advanced System Restoration Module Mapping Drone Bay (3/3) Latent Energy Streamer Improved Plasma Cutter Peak State ------------ > --- POWER ------------ Neutrino Core > --- PROPULSION ------- Wheel Wheel > --- UTILITY ---------- Advanced Cooling System Huge Storage Unit Advanced Targeting Computer Core Analyzer Improved Weapon Cycler Hardened Medium Armor Plating Improved Light Armor Plating Improved Shield Generator Advanced System Shield > --- WEAPON ----------- Cooled Pulse Rifle Cooled Pulse Rifle Latent Energy Streamer Gauss Cannon Chainsword > --- INVENTORY -------- Angular Momentum Engine Wheel Compact Wheel Compact Wheel Compact Wheel Huge Storage Unit High-capacity Matter Pod Matter Compressor Experimental Sensor Array Encrypted Comm Array Improved Target Analyzer Hardened Medium Armor Plating Improved Thermal Shield Improved Shock Absorption System Advanced System Shield Authchip [R/Combat] Authchip [R/Combat] Advanced System Restoration Module Mapping Drone Bay Dimensional Node Initializer Wave Gun Dispersion Rifle Railgun Enhanced Gauss Cannon Improved Plasma Cutter [Rating: 84] Favorites ----------- Power Antimatter Reactor Engine Ion Engine Power Core Neutrino Core Reactor Antimatter Reactor Propulsion Wheel Treads Improved Medium Treads Leg Flexi-carbon Leg Wheel Wheel Utility Huge Storage Unit Device Improved Weapon Cycler Storage Huge Storage Unit Processor Core Analyzer Hackware Advanced System Shield Protection Hardened Heavy Armor Plating Weapon Cooled Pulse Rifle Energy Gun Cooled Pulse Rifle Energy Cannon Latent Energy Streamer Ballistic Gun Assault Rifle Ballistic Cannon Gauss Cannon Launcher Smartbomb Launcher Impact Weapon Mace Slashing Weapon Chainsword Special Melee Weapon Improved Datajack Build | -11 -10 -10 -10 -9 -8 -8 -8 -8 -7 -7 -7 -7 -7 -7 -7 -6 -6 -6 -6 -5 -5 ------- Run | Yrd Mat Min Exi Min Mat Gar Mat Gar Fac Gar Fac Gar Fac Gar Fac Fac Low Low Dat Pro Fac Slots Evolved 10 | . . . . . 4 . . . 2 . . . . . . 2 . . . . 2 Power . | . . . . . . . . . . . . . . . . . . . . . . Propulsion . | . . . . . . . . . . . . . . . . . . . . . . Utility 7 | . . . . . 3 . . . 2 . . . . . . 1 . . . . 1 Weapon 3 | . . . . . 1 . . . . . . . . . . 1 . . . . 1 Parts Attached 273 | 6 8 . . 1 9 29 4 26 18 39 2 27 11 21 5 18 12 5 . 8 24 Power 8 | 1 . . . . 1 1 . . 1 1 . . 1 . . . . . . 1 1 Engine 4 | 1 . . . . 1 . . . 1 . . . . . . . . . . . 1 Core 2 | . . . . . . 1 . . . . . . . . . . . . . 1 . Reactor 2 | . . . . . . . . . . 1 . . 1 . . . . . . . . Propulsion 27 | 2 2 . . . 1 5 . 3 1 . . . . . . 3 2 . . 1 7 Treads 4 | 2 . . . . . 2 . . . . . . . . . . . . . . . Leg 1 | . . . . . . . . . . . . . . . . . . . . . 1 Wheel 22 | . 2 . . . 1 3 . 3 1 . . . . . . 3 2 . . 1 6 Hover . | . . . . . . . . . . . . . . . . . . . . . . Flight . | . . . . . . . . . . . . . . . . . . . . . . Utility 60 | 1 2 . . . 4 4 3 2 3 2 . 3 5 . 3 10 7 2 . 5 4 Device 40 | . . . . . 2 1 3 1 3 1 . 1 3 . 3 6 7 2 . 4 3 Storage 3 | 1 1 . . . . . . . . . . . 1 . . . . . . . . Processor 3 | . . . . . . . . . . . . . 1 . . 2 . . . . . Hackware 1 | . . . . . . 1 . . . . . . . . . . . . . . . Protection 13 | . 1 . . . 2 2 . 1 . 1 . 2 . . . 2 . . . 1 1 Artifact . | . . . . . . . . . . . . . . . . . . . . . . Weapon 178 | 2 4 . . 1 3 19 1 21 13 36 2 24 5 21 2 5 3 3 . 1 12 Energy Gun 47 | 1 . . . . . . . 1 2 17 . 10 . 8 . 2 2 . . . 4 Energy Cannon 27 | . . . . . . 3 . 6 1 5 . 5 . 4 . . . . . . 3 Ballistic Gun 8 | 1 . . . . 2 2 . . . . . 1 . . . . . . . . 2 Ballistic Cannon 36 | . 2 . . 1 1 6 . 5 5 2 . 1 4 1 2 2 . 2 . . 2 Launcher 34 | . 2 . . . . 5 . 5 2 7 1 2 1 5 . 1 1 1 . . 1 Special Weapon . | . . . . . . . . . . . . . . . . . . . . . . Impact Weapon 2 | . . . . . . 2 . . . . . . . . . . . . . . . Slashing Weapon 23 | . . . . . . 1 1 4 2 5 1 5 . 3 . . . . . 1 . Piercing Weapon . | . . . . . . . . . . . . . . . . . . . . . . Special Melee Weapon 1 | . . . . . . . . . 1 . . . . . . . . . . . . Unidentified Prototypes 1 | . . . . . . . . . . . . . . . . . . . . . 1 Parts Lost 48 | . . . . . 1 9 1 . . 1 . . 2 . . 1 3 . . 2 28 Power 3 | . . . . . . . . . . . . . 1 . . . . . . . 2 Propulsion 16 | . . . . . 1 4 . . . . . . . . . . 2 . . . 9 Utility 16 | . . . . . . 3 1 . . 1 . . . . . 1 1 . . 2 7 Weapon 13 | . . . . . . 2 . . . . . . 1 . . . . . . . 10 Highest Loss Streak 24 | . . . . . 1 5 1 . . 1 . . 2 . . 1 2 . . 1 24 To Critical Strikes . | . . . . . . . . . . . . . . . . . . . . . . Average Slot Usage (%) 87 | . 92 100 100 100 86 92 89 87 84 81 81 79 83 79 72 94 98 99 100 97 79 Engine 2 | . 14 14 14 14 9 1 . . 5 2 . . . . . . . . . . . Core 2 | . . . . . . 7 9 9 1 . . . . . . . . . . 1 3 Reactor 3 | . . . . . . . . . . 4 7 7 7 7 7 6 6 6 6 4 . Treads 1 | . 19 . . . . 3 9 1 . . . . . . . . . . . . . Wheel 11 | . 8 28 28 28 16 14 9 16 9 7 7 7 7 7 7 12 12 13 13 13 9 Device 13 | . . . . . 6 12 8 9 21 23 23 22 15 15 11 13 12 13 13 11 9 Storage 8 | . 14 14 14 14 9 9 9 9 7 7 7 7 7 7 7 6 6 6 6 6 5 Processor 3 | . . . . . . . . . . . . . 6 7 7 11 13 13 13 13 10 Hackware 6 | . . . . . . 6 9 9 7 7 7 7 7 7 7 6 6 6 6 6 5 Protection 9 | . 7 14 14 14 17 10 9 9 7 7 7 7 7 7 7 9 13 13 13 11 8 Energy Gun 6 | . 14 14 14 2 . . . . . 12 10 6 21 6 . 6 12 13 13 13 8 Energy Cannon 2 | . . . . . . 6 5 3 1 3 . 2 . 2 . . . . . . . Ballistic Cannon 9 | . 8 14 14 25 18 13 18 13 13 . . 1 1 . 6 16 13 12 13 6 8 Slashing Weapon 2 | . . . . . . . 4 7 6 2 7 4 . 3 7 3 . . . 5 3 Naked Turns . | . . . . . . . . . . . . . . . . . . . . . . Heaviest Build 143 | 14 91 91 91 96 109 135 135 139 138 138 132 143 136 142 135 143 134 133 133 133 140 Greatest Support 40 | 40 40 20 20 20 20 22 12 24 28 28 28 28 28 28 28 28 24 20 20 20 32 Greatest Overweight (x) 26 | . 4 4 4 4 10 13 11 10 5 4 4 5 4 5 4 11 11 6 6 6 26 Average Overweight (x) 4 | . 1 4 4 4 4 6 10 5 4 4 4 4 4 4 4 4 5 5 6 6 5 Largest Inventory Capacity 25 | 8 25 25 25 25 25 25 25 25 25 25 25 25 25 25 25 25 25 25 25 25 25 Average Capacity 24 | 7 12 25 25 25 25 25 25 25 25 25 25 25 25 25 25 25 25 25 25 25 25 Most Carried 25 | 5 15 20 23 25 25 25 25 25 25 25 25 25 25 25 25 25 25 25 24 25 25 Average Carried 23 | 3 7 18 20 24 24 23 24 23 24 24 24 24 24 23 24 24 23 24 24 24 22 Final Capacity 25 | 8 25 25 25 25 25 25 25 25 25 25 25 25 25 25 25 25 25 25 25 25 25 Final Carried 25 | 4 15 20 23 25 25 25 25 23 25 25 24 25 23 24 24 25 24 24 24 24 16 Class Distribution -------------------- 45% | Mutant 25% | Gunner 14% | Skirmisher 12% | Tank Dominant Class ---------------- Mutant | -10/Materials Mutant | -10/Mines Mutant | -10/Exiles Mutant | -9/Mines Skirmisher | -8/Materials Skirmisher | -8/Garrison Skirmisher | -8/Materials Mutant | -8/Garrison Mutant | -7/Factory Tank | -7/Garrison Commander-Mutant | -7/Factory Mutant | -7/Garrison Gunner | -7/Factory Mutant | -7/Garrison Mutant | -7/Factory Gunner | -6/Factory Gunner | -6/Lower Caves Gunner | -6/Lower Caves Gunner | -6/Data Miner Gunner | -5/Proximity Caves Tank | -5/Factory Resources | -11 -10 -10 -10 -9 -8 -8 -8 -8 -7 -7 -7 -7 -7 -7 -7 -6 -6 -6 -6 -5 -5 ----------- Run | Yrd Mat Min Exi Min Mat Gar Mat Gar Fac Gar Fac Gar Fac Gar Fac Fac Low Low Dat Pro Fac Matter Collected 11403 | 214 230 69 755 . 141 1755 243 1056 698 1448 . 1069 496 1585 196 475 201 133 . 356 283 Remotely . | . . . . . . . . . . . . . . . . . . . . . . Salvage Created 8431 | . 181 28 . . 80 800 232 557 809 986 16 1012 331 961 10 717 83 68 . 337 1223 Parts 438 | . 21 2 . . 8 54 11 30 38 38 2 42 18 31 3 39 6 7 . 18 70 Haulers Intercepted 5 | . 1 . . . . 1 1 . . . . . . . . 1 . . . . 1 Recyclers Shooed 1 | . . . . . . . . . . . . . . . . . . . . . 1 Parts Field Recycled . | . . . . . . . . . . . . . . . . . . . . . . Retrieved Matter . | . . . . . . . . . . . . . . . . . . . . . . Parts Self-Destructed 28 | . . . . . . . . . . . . . . . . . 6 4 . 18 . Prevented . | . . . . . . . . . . . . . . . . . . . . . . Kills | -11 -10 -10 -10 -9 -8 -8 -8 -8 -7 -7 -7 -7 -7 -7 -7 -6 -6 -6 -6 -5 -5 ------- Run | Yrd Mat Min Exi Min Mat Gar Mat Gar Fac Gar Fac Gar Fac Gar Fac Fac Low Low Dat Pro Fac Combat Hostiles Destroyed 252 | . 6 3 . . 2 33 2 21 21 36 3 32 13 33 . 10 4 5 . 11 17 Guns 52 | . 2 2 . . . 8 . 1 2 8 . 5 2 1 . 2 1 . . 9 9 Cannons 52 | . . 1 . . 2 13 2 4 13 2 . . 2 1 . 4 3 1 . 2 2 AOE 143 | . 4 . . . . 12 . 16 6 25 3 24 9 31 . 4 . 4 . . 5 Classes Destroyed 19 | . 6 . . . 2 4 1 1 4 . . . . . . 1 . . . . . Worker 8 | . 1 . . . . . . . 2 . . . 1 . . 1 . . . . 3 Builder 10 | . 1 . . . . . . . 1 . . . 2 . 1 1 . . . . 4 Tunneler 2 | . . . . . 1 . . . 1 . . . . . . . . . . . . Hauler 5 | . 1 . . . . 1 1 . . . . . . . . 1 . . . . 1 Recycler 6 | . . . . . . . 1 . 1 . . . . . . 2 . . . . 2 Mechanic 4 | . . . . . . . . . 1 . . . 1 . . 1 . . . . 1 Operator 2 | . . . . . . . . . . . . . . . . 1 . . . . 1 Watcher 6 | . 1 . . . . 1 . . 1 . . 2 . . . 1 . . . . . Swarmer 76 | . 3 3 . . . 16 . 8 2 4 3 11 . 4 . . 3 4 . 8 7 Grunt 85 | . 3 . . . . 6 1 9 10 18 . 9 7 19 . 3 . . . . . Brawler 4 | . . . . . . . . . 1 2 . . . 1 . . . . . . . Duelist 14 | . . . . . . 1 . . 2 1 . 2 4 1 . 1 . . . 2 . Protector 4 | . . . . . . . . . 1 . . . 1 . . . . . . . 2 Sentry 36 | . . . . . 2 5 1 2 3 6 . 9 1 2 . 4 . . . 1 . Specialist 5 | . . . . . . . . 2 . 2 . . . . . . . . . . 1 Hunter 11 | . . . . . . 1 . . . 3 . . . 3 . . . . . . 4 Programmer 14 | . . . . . . 3 . . 1 . . . . 3 . 2 1 1 . . 3 Heavy 1 | . . . . . . . . . 1 . . . . . . . . . . . . Behemoth 2 | . . . . . . 1 . . . . . 1 . . . . . . . . . Infiltrator 1 | . . . . . . . . . . 1 . . . . . . . . . . . Best Kill Streak 14 | . 5 3 . . 3 5 2 7 5 10 3 12 14 9 1 8 3 4 . 4 10 Combat Bots Only 12 | . 3 3 . . 2 5 1 7 5 10 3 12 10 9 . 4 3 4 . 4 7 Max Kills in Single Turn 4 | . 3 1 . . 1 3 1 4 3 3 3 4 3 4 1 3 1 3 . 2 3 Gunslinging 1 | . . . . . . . . . . . . . . . . . . . . 1 . Exploded 4 | . 2 . . . . 3 . 4 3 3 3 4 3 4 . 3 . 3 . . 2 Melee . | . . . . . . . . . . . . . . . . . . . . . . Uniques/NPCs Destroyed . | . . . . . . . . . . . . . . . . . . . . . . Combat | -11 -10 -10 -10 -9 -8 -8 -8 -8 -7 -7 -7 -7 -7 -7 -7 -6 -6 -6 -6 -5 -5 -------- Run | Yrd Mat Min Exi Min Mat Gar Mat Gar Fac Gar Fac Gar Fac Gar Fac Fac Low Low Dat Pro Fac Hostile Shots Fired 1206 | . 28 14 . . 32 209 22 14 97 126 . 193 36 57 5 49 15 2 . 37 270 Missed 414 | . 7 4 . . 7 72 6 7 30 48 . 96 17 23 4 16 3 . . 12 62 Damage Taken 10787 | . 200 76 . . 291 2343 253 80 878 654 . 717 220 366 11 348 180 34 . 382 3754 Core 1898 | . 15 24 . . 23 230 . . 66 75 . 49 21 34 . 19 43 16 . 56 1227 Absorbed by Shields 465 | . . . . . 100 96 . . . . . . . . . . . . . 84 185 Redirected to Shielding 53 | . . 4 . . 31 18 . . . . . . . . . . . . . . . Ignored by Resistances 373 | . . . . . . . . . . 158 . 117 30 32 4 32 . . . . . Regen/Repaired (Parts) 270 | . . . . . . . . . . . . . 270 . . . . . . . . Core Remaining (%) 77 | 100 . . . 84 . . . 54 . . . . . . 65 . . . . 84 . Volleys Fired 591 | . 28 9 . . 13 124 11 26 48 87 1 63 25 69 . 25 9 5 . 17 31 Largest 4 | . 2 2 . . 3 3 3 2 3 3 1 3 3 3 . 4 3 3 . 3 3 Hottest 217 | . 85 85 . . 103 156 156 98 156 88 46 60 134 97 . 154 114 114 . 97 217 Shots Fired 1128 | . 46 18 . . 39 251 21 38 105 156 1 124 48 87 . 66 19 8 . 46 55 Gun 486 | . 26 9 . . 13 61 . 1 27 101 . 94 26 28 . 18 8 2 . 34 38 Cannon 460 | . 12 9 . . 26 170 21 26 73 15 . . 11 10 . 46 11 3 . 12 15 Launcher 182 | . 8 . . . . 20 . 11 5 40 1 30 11 49 . 2 . 3 . . 2 Special . | . . . . . . . . . . . . . . . . . . . . . . Kinetic 510 | . 12 9 . . 39 199 19 26 72 15 . 1 11 10 . 46 11 3 . 12 25 Thermal 432 | . 26 9 . . . 32 2 . 27 101 . 93 26 28 . 18 8 2 . 34 26 Explosive 182 | . 8 . . . . 20 . 11 5 40 1 30 11 49 . 2 . 3 . . 2 Electromagnetic 4 | . . . . . . . . 1 1 . . . . . . . . . . . 2 Robot Hit Streak 21 | . 4 3 . . 6 6 6 7 9 17 . 21 12 12 . 12 4 2 . 9 9 Robot Miss Streak 10 | . 4 4 . . 7 10 3 2 2 4 . 2 4 1 . 2 2 1 . 3 2 Penetration Max 1 | . . . . . . . . . 1 . . . . . . . . . . . 1 Secondary Targets 6 | . . . . . . . . . . 1 . 1 1 . . . . . . 3 . Max Gunslinging Chain 1 | . . . . . . . . . . 1 . 1 1 . . . . . . 1 . Shots Hit Robots 594 | . 23 10 . . 18 114 14 36 68 67 . 75 26 25 1 41 12 2 . 26 36 Core Hits 542 | . 14 3 . . 6 56 5 32 43 83 2 55 44 62 . 28 4 5 . 16 84 Critical Kills 1 | . . . . . . 1 . . . . . . . . . . . . . . . Critical Parts Destroyed 3 | . . . . . 1 2 . . . . . . . . . . . . . . . Critical Strikes 50 | . 1 . . . 1 11 2 7 8 3 . 1 3 2 . 5 . . . 3 3 Burn 7 | . 1 . . . . . . . 1 1 . 1 1 . . . . . . 1 1 Destroy 5 | . . . . . 1 3 . . . 1 . . . . . . . . . . . Blast 31 | . . . . . . 8 2 2 7 1 . . 2 . . 5 . . . 2 2 Sever 7 | . . . . . . . . 5 . . . . . 2 . . . . . . . Melee Attacks 135 | . . . . . . 21 5 52 5 14 . 14 . 21 1 . . . . 1 1 Impact 14 | . . . . . . 14 . . . . . . . . . . . . . . . Slashing 121 | . . . . . . 7 5 52 5 14 . 14 . 21 1 . . . . 1 1 Piercing . | . . . . . . . . . . . . . . . . . . . . . . Sneak Attacks 6 | . . . . . . . 2 . 3 . . . . . 1 . . . . . . Combat Hostiles . | . . . . . . . . . . . . . . . . . . . . . . Follow-up Attacks . | . . . . . . . . . . . . . . . . . . . . . . Damage Inflicted 37927 | . 789 198 . . 369 4527 489 3197 3169 5432 505 4646 2112 5582 63 1949 385 613 . 599 3303 Guns 5609 | . 201 81 . . 93 513 . 24 309 983 . 1531 365 96 . 174 166 . . 368 705 Cannons 7267 | . 72 117 . . 276 2011 278 309 1512 291 . . 275 139 . 1109 219 90 . 231 338 Explosions 22710 | . 516 . . . . 1763 . 1790 1085 4158 505 3115 1472 4891 . 666 . 523 . . 2226 Melee 2341 | . . . . . . 240 211 1074 263 . . . . 456 63 . . . . . 34 Ramming . | . . . . . . . . . . . . . . . . . . . . . . Kinetic 7942 | . 72 117 . . 369 2336 254 309 1512 291 . . 275 139 . 1109 219 90 . 231 619 Thermal 5379 | . 201 81 . . . 188 24 . 309 983 258 1531 365 96 . 174 166 . . 368 635 Explosive 20778 | . 516 . . . . 1763 . 1790 1085 4158 247 3115 1472 4891 . 666 . 523 . . 552 Electromagnetic 1487 | . . . . . . . . 24 . . . . . . . . . . . . 1463 Impact . | . . . . . . . . . . . . . . . . . . . . . . Slashing 2341 | . . . . . . 240 211 1074 263 . . . . 456 63 . . . . . 34 Piercing . | . . . . . . . . . . . . . . . . . . . . . . Highest Corruption 18 | . . . . . . 1 4 4 4 4 4 4 4 2 2 2 1 . . . 18 Average Corruption 3 | . . . . . . 1 1 4 4 4 4 4 3 2 1 1 1 . . . 14 Corruption Purged 10 | . . . . . . . . . . . . . 4 . 2 2 1 . . . 1 Corruption Blocked . | . . . . . . . . . . . . . . . . . . . . . . Effects 166 | . . . . . . 2 6 29 2 45 6 37 12 11 2 1 . . . . 13 Message Errors 43 | . . . . . . . . 3 . 16 2 11 6 . . . . . . . 5 Matter Fused 31 | . . . . . . . 2 4 . 9 1 5 2 5 2 . . . . . 1 Heat Flow Errors 25 | . . . . . . 1 1 8 . 3 2 8 . 1 . . . . . . 1 Energy Discharges 24 | . . . . . . 1 1 5 . 6 1 3 2 4 . . . . . . 1 Parts Rejected 1 | . . . . . . . . . . 1 . . . . . . . . . . . Data Loss (minor) 22 | . . . . . . . . 5 1 7 . 6 2 . . 1 . . . . . Data Loss (major) 8 | . . . . . . . 2 2 . 1 . 1 . 1 . . . . . . 1 Misfires 2 | . . . . . . . . 2 . . . . . . . . . . . . . Alerts 4 | . . . . . . . . . . 2 . 2 . . . . . . . . . Misdirections 3 | . . . . . . . . . . . . . . . . . . . . . 3 Weapon Failures 3 | . . . . . . . . . 1 . . 1 . . . . . . . . 1 Overload Shots . | . . . . . . . . . . . . . . . . . . . . . . Overflow Damage 1267 | . 27 . . . . 182 . 137 68 177 106 48 10 152 23 115 42 29 . 8 143 Projectiles 353 | . . . . . . 111 . . 22 43 . . 7 . . 115 42 . . 8 5 Explosions 717 | . 27 . . . . 49 . 66 . 134 106 48 3 117 . . . 29 . . 138 Melee 197 | . . . . . . 22 . 71 46 . . . . 35 23 . . . . . . Knockbacks 59 | . . 3 . . 1 12 2 2 12 3 . . 6 . . 6 1 1 . 2 8 Impact . | . . . . . . . . . . . . . . . . . . . . . . Kinetic 53 | . . 3 . . 1 10 2 2 12 3 . . 4 . . 6 1 1 . 2 6 Secondary 6 | . . . . . . 2 . . . . . . 2 . . . . . . . 2 Self-Inflicted Damage 186 | . 25 . . . . 26 . . 55 . . . . 44 . . . 5 . . 31 Shots 9 | . 1 . . . . 1 . . 1 . . . . 3 . . . 1 . . 2 Rammed . | . . . . . . . . . . . . . . . . . . . . . . Targets Rammed . | . . . . . . . . . . . . . . . . . . . . . . Kicked . | . . . . . . . . . . . . . . . . . . . . . . Crushed . | . . . . . . . . . . . . . . . . . . . . . . Highest Temperature 330 | . 144 144 . . . 288 239 304 285 153 140 238 92 52 . 126 330 66 . 246 262 Average Temperature 76 | . 46 53 . . . 109 109 87 71 26 66 52 43 16 . 30 153 33 . 119 67 Received Heat Transfer 1875 | . 18 . . . 66 345 108 36 279 330 . 237 75 63 9 51 . . . 60 198 Effects 6 | . . . . . . 1 1 . 2 . . . . . . . 2 . . . . Interference 6 | . . . . . . 1 1 . 2 . . . . . . . 2 . . . . Siege Activations . | . . . . . . . . . . . . . . . . . . . . . . Robots Corrupted 2 | . . . . . . . . . . . . . . . . . . . . . 2 Combat Hostiles 1 | . . . . . . . . . . . . . . . . . . . . . 1 Parts Fried 21 | . . . . . . . . . . . . . 1 . . . . . . . 20 Impact Corruptions 1 | . . . . . . . . . . . . . 1 . . . . . . . . Robots Melted 4 | . . . . . . . . . . 1 . 3 . . . . . . . . . Combat Hostiles 4 | . . . . . . . . . . 1 . 3 . . . . . . . . . Parts Melted 19 | . . 1 . . . 1 . . 1 3 . 5 2 . . . 2 . . 2 2 Heat Transferred 9867 | . 666 222 . . . 296 37 . 666 1803 150 2923 777 185 . 333 222 . . 777 810 Parts Sabotaged . | . . . . . . . . . . . . . . . . . . . . . . Parts Stolen . | . . . . . . . . . . . . . . . . . . . . . . Parts Stripped . | . . . . . . . . . . . . . . . . . . . . . . Power Chain Reactions . | . . . . . . . . . . . . . . . . . . . . . . Latent Energy Used 465 | . . . . . . . . . 121 . . . . . . . . . . . 344 LE Corruption 8 | . . . . . . . . . 2 . . . . . . . . . . . 6 Alert | -11 -10 -10 -10 -9 -8 -8 -8 -8 -7 -7 -7 -7 -7 -7 -7 -6 -6 -6 -6 -5 -5 ------- Run | Yrd Mat Min Exi Min Mat Gar Mat Gar Fac Gar Fac Gar Fac Gar Fac Fac Low Low Dat Pro Fac Peak Influence 2950 | . 240 92 . . 111 2095 1114 1680 945 2500 1480 2417 1444 2950 1548 709 . . . . 327 Initial 1548 | . . 22 . . . 72 1021 603 882 661 1312 1036 1268 1010 1548 662 . . . . . Average 1067 | . 93 49 . . 46 998 1002 1139 759 1624 1360 1742 1222 2072 1513 583 . . . . 90 Maximum Alert Level 5 | . 1 . . . . 5 4 5 3 5 4 5 4 5 4 3 . . . . 1 Low Security (%) 16 | 100 80 100 . 100 100 10 . . . . . . . . . . . . . . 82 Level 1 2 | . 19 . . . . 4 . . . . . . . . . . . . . . 17 Level 2 17 | . . . . . . 28 . 26 31 5 . . . . . 84 . . . . . Level 3 18 | . . . . . . 14 97 17 68 15 . 8 13 3 . 15 . . . . . Level 4 24 | . . . . . . 19 2 47 . 27 100 38 86 25 100 . . . . . . Level 5 21 | . . . . . . 21 . 9 . 52 . 52 . 70 . . . . . . . High Security . | . . . . . . . . . . . . . . . . . . . . . . Max Security . | . . . . . . . . . . . . . . . . . . . . . . Squads Dispatched 31 | . 2 . . . 2 . 1 . 9 . . . 8 . 3 5 . . . . 1 Investigation 4 | . 1 . . . 1 . . . . . . . 1 . . . . . . . 1 Extermination 6 | . . . . . . . . . 2 . . . 2 . . 2 . . . . . Reinforcement 8 | . 1 . . . . . 1 . 3 . . . 2 . . 1 . . . . . Assault 9 | . . . . . . . . . 3 . . . 2 . 3 1 . . . . . Garrison 4 | . . . . . 1 . . . 1 . . . 1 . . 1 . . . . . Intercept . | . . . . . . . . . . . . . . . . . . . . . . Searches Triggered . | . . . . . . . . . . . . . . . . . . . . . . Construction Impeded 2 | . . . . . . . . . 1 . . . 1 . . . . . . . . Haulers Reinforced . | . . . . . . . . . . . . . . . . . . . . . . Active Scanning Responses . | . . . . . . . . . . . . . . . . . . . . . . Cargo Convoy Interrupts 2 | . . . . . . . . . . . . . 1 . . . . . . . 1 Stealth | -11 -10 -10 -10 -9 -8 -8 -8 -8 -7 -7 -7 -7 -7 -7 -7 -6 -6 -6 -6 -5 -5 --------- Run | Yrd Mat Min Exi Min Mat Gar Mat Gar Fac Gar Fac Gar Fac Gar Fac Fac Low Low Dat Pro Fac Distress Signals 7 | . . . . . . . 2 . 1 . . . 2 . . 1 . . . . 1 Communications Jammed . | . . . . . . . . . . . . . . . . . . . . . . Distress Signals . | . . . . . . . . . . . . . . . . . . . . . . Times Spotted 230 | . 11 2 . . 3 35 7 6 29 26 . 12 21 12 6 15 4 3 . 11 27 Peak Tracking Total 9 | . 4 2 . . 3 4 3 5 6 4 . 7 8 9 7 4 3 4 . 4 9 Tactical Retreats 11 | . . . . . . 3 2 . 2 1 . . 1 1 . . . . . . 1 Traps | -11 -10 -10 -10 -9 -8 -8 -8 -8 -7 -7 -7 -7 -7 -7 -7 -6 -6 -6 -6 -5 -5 ------- Run | Yrd Mat Min Exi Min Mat Gar Mat Gar Fac Gar Fac Gar Fac Gar Fac Fac Low Low Dat Pro Fac Traps Triggered 46 | . 1 . . . . 12 2 5 1 8 . 8 1 3 . 2 . . . . 3 Indirectly . | . . . . . . . . . . . . . . . . . . . . . . Trap Hack Attempts . | . . . . . . . . . . . . . . . . . . . . . . Triggered . | . . . . . . . . . . . . . . . . . . . . . . Disarmed . | . . . . . . . . . . . . . . . . . . . . . . Reprogrammed . | . . . . . . . . . . . . . . . . . . . . . . Reused . | . . . . . . . . . . . . . . . . . . . . . . Traps Extracted . | . . . . . . . . . . . . . . . . . . . . . . Installed . | . . . . . . . . . . . . . . . . . . . . . . Triggered 2 | . . . . . . . . . . . . . 2 . . . . . . . . Machines | -11 -10 -10 -10 -9 -8 -8 -8 -8 -7 -7 -7 -7 -7 -7 -7 -6 -6 -6 -6 -5 -5 ---------- Run | Yrd Mat Min Exi Min Mat Gar Mat Gar Fac Gar Fac Gar Fac Gar Fac Fac Low Low Dat Pro Fac Machines Disabled 81 | . 3 . . . . 11 . 11 3 8 4 9 2 16 . 2 . . . 1 11 Max in Single Turn 4 | . 3 . . . . 2 . 2 1 2 4 2 1 2 . 1 . . . 1 4 Garrison Relay 27 | . . . . . . 5 . 4 . 4 . 5 . 9 . . . . . . . Phase Generator 2 | . . . . . . 1 . . . . . . . 1 . . . . . . . Machines Repaired . | . . . . . . . . . . . . . . . . . . . . . . Machines Dismantled . | . . . . . . . . . . . . . . . . . . . . . . Machines Sabotaged . | . . . . . . . . . . . . . . . . . . . . . . Overloaded Fab Kills . | . . . . . . . . . . . . . . . . . . . . . . Hacking | -11 -10 -10 -10 -9 -8 -8 -8 -8 -7 -7 -7 -7 -7 -7 -7 -6 -6 -6 -6 -5 -5 --------- Run | Yrd Mat Min Exi Min Mat Gar Mat Gar Fac Gar Fac Gar Fac Gar Fac Fac Low Low Dat Pro Fac Machines Accessed 58 | . 6 . 2 . 5 2 1 1 13 4 2 1 3 3 3 6 . . 4 1 1 Terminals 40 | . 6 . . . 3 2 . 1 9 4 1 1 1 3 3 5 . . . . 1 Fabricators 2 | . . . . . . . . . 2 . . . . . . . . . . . . Repair Stations 3 | . . . . . . . . . 1 . . . 1 . . 1 . . . . . Recycling Units . | . . . . . . . . . . . . . . . . . . . . . . Scanalyzers 1 | . . . . . 1 . . . . . . . . . . . . . . . . Garrison Access 5 | . . . . . 1 . 1 . 1 . 1 . 1 . . . . . . . . Total Hacks 155 | . 18 . 2 . 13 3 1 1 36 6 3 2 8 6 4 20 . . 28 1 3 Successful 81 | . 10 . 2 . 8 1 1 1 11 3 2 . 4 1 1 7 . . 28 1 . Failed 74 | . 8 . . . 5 2 . . 25 3 1 2 4 5 3 13 . . . . 3 Catastrophic 14 | . 1 . . . 1 . . . 4 1 . 1 1 . 2 2 . . . . 1 Database Lockouts . | . . . . . . . . . . . . . . . . . . . . . . Manual 40 | . 12 . 1 . 3 . . . 9 . 1 . 2 . . 9 . . . . 3 Terminals 94 | . 18 . . . 6 3 . 1 25 6 1 2 3 6 4 16 . . . . 3 Fabricators 5 | . . . . . . . . . 5 . . . . . . . . . . . . Repair Stations 10 | . . . . . . . . . 4 . . . 2 . . 4 . . . . . Recycling Units . | . . . . . . . . . . . . . . . . . . . . . . Scanalyzers 5 | . . . . . 5 . . . . . . . . . . . . . . . . Garrison Access 10 | . . . . . 2 . 1 . 2 . 2 . 3 . . . . . . . . Terminal Hacks 56 | . 6 . 2 . 1 1 . 1 6 3 . . 1 1 1 4 . . 28 1 . Record 13 | . . . 1 . . . . . . . . . . . . . . . 11 1 . Part Schematic 10 | . . . . . . . . . . . . . . . . . . . 10 . . Robot Schematic 4 | . . . . . . . . . . . . . . . . . . . 4 . . Robot Analysis 5 | . 4 . . . . . . . . . . . . . . 1 . . . . . Prototype ID Bank 7 | . 2 . . . . . . . 1 . . . . . . 1 . . 3 . . Open Door 1 | . . . . . . . . . . 1 . . . . . . . . . . . Branch Access Points 3 | . . . . . 1 . . . 1 . . . . . . 1 . . . . . Emergency Access Points 4 | . . . . . . 1 . 1 . 1 . . . 1 . . . . . . . Alert Level 2 | . . . . . . . . . . . . . . . 1 1 . . . . . Unreport Threat 1 | . . . . . . . . . 1 . . . . . . . . . . . . Locate Traps 1 | . . . . . . . . . 1 . . . . . . . . . . . . Zone Layout 3 | . . . . . . . . . 2 . . . 1 . . . . . . . . Patrol Navigation 1 | . . . . . . . . . . 1 . . . . . . . . . . . Derelict Proto ID Bank 1 | . . . 1 . . . . . . . . . . . . . . . . . . Fabricator Hacks 1 | . . . . . . . . . 1 . . . . . . . . . . . . Build 1 | . . . . . . . . . 1 . . . . . . . . . . . . Repair Station Hacks 3 | . . . . . . . . . . . . . 2 . . 1 . . . . . Scan Component 2 | . . . . . . . . . . . . . 1 . . 1 . . . . . Repair 1 | . . . . . . . . . . . . . 1 . . . . . . . . Recycling Unit Hacks . | . . . . . . . . . . . . . . . . . . . . . . Scanalyzer 4 | . . . . . 4 . . . . . . . . . . . . . . . . Insert Component 2 | . . . . . 2 . . . . . . . . . . . . . . . . Analyze 2 | . . . . . 2 . . . . . . . . . . . . . . . . Garrison Access Hacks 5 | . . . . . 1 . 1 . 1 . 1 . 1 . . . . . . . . Unlock Access 5 | . . . . . 1 . 1 . 1 . 1 . 1 . . . . . . . . Unauthorized Hacks 12 | . 4 . . . 2 . . . 3 . 1 . . . . 2 . . . . . Terminals 11 | . 4 . . . 1 . . . 3 . 1 . . . . 2 . . . . . Assimilate 2 | . 2 . . . . . . . . . . . . . . . . . . . . Botnet 9 | . 2 . . . 1 . . . 3 . 1 . . . . 2 . . . . . Fabricators . | . . . . . . . . . . . . . . . . . . . . . . Repair Stations . | . . . . . . . . . . . . . . . . . . . . . . Recycling Units . | . . . . . . . . . . . . . . . . . . . . . . Scanalyzers 1 | . . . . . 1 . . . . . . . . . . . . . . . . Extract 1 | . . . . . 1 . . . . . . . . . . . . . . . . Garrison Access . | . . . . . . . . . . . . . . . . . . . . . . Data Cores Recovered 2 | . . . . . . . . . . . . . 1 . . 1 . . . . . Used . | . . . . . . . . . . . . . . . . . . . . . . Hacking Detections 43 | . 6 . . . 4 1 . 1 13 2 1 1 2 3 3 5 . . . . 1 Full Trace Events 3 | . 1 . . . . . . . . . . . 1 . . . . . . . 1 Feedback Events . | . . . . . . . . . . . . . . . . . . . . . . Feedback Blocked . | . . . . . . . . . . . . . . . . . . . . . . Robot Schematics Acquired 4 | . . . . . . . . . . . . . . . . . . . 4 . . Robots Built 3 | . . . . . . . . . 3 . . . . . . . . . . . . Authchips . | . . . . . . . . . . . . . . . . . . . . . . Time 58 | . . . . . . . . . 58 . . . . . . . . . . . . Total Robot Build Rating 9 | . . . . . . . . . 9 . . . . . . . . . . . . Part Schematics Acquired 13 | . . . . . 3 . . . . . . . . . . . . . 10 . . Parts Built . | . . . . . . . . . . . . . . . . . . . . . . Authchips . | . . . . . . . . . . . . . . . . . . . . . . Time . | . . . . . . . . . . . . . . . . . . . . . . Total Part Build Rating . | . . . . . . . . . . . . . . . . . . . . . . Parts Repaired 1 | . . . . . . . . . . . . . 1 . . . . . . . . Time 26 | . . . . . . . . . . . . . 26 . . . . . . . . Parts Recycled . | . . . . . . . . . . . . . . . . . . . . . . Recycled Matter . | . . . . . . . . . . . . . . . . . . . . . . Retrieved Matter . | . . . . . . . . . . . . . . . . . . . . . . Retrieved Components . | . . . . . . . . . . . . . . . . . . . . . . Parts Scanalyzed 2 | . . . . . 2 . . . . . . . . . . . . . . . . Part Schematics Acquired 2 | . . . . . 2 . . . . . . . . . . . . . . . . Parts Damaged . | . . . . . . . . . . . . . . . . . . . . . . Bothacking | -11 -10 -10 -10 -9 -8 -8 -8 -8 -7 -7 -7 -7 -7 -7 -7 -6 -6 -6 -6 -5 -5 ------------ Run | Yrd Mat Min Exi Min Mat Gar Mat Gar Fac Gar Fac Gar Fac Gar Fac Fac Low Low Dat Pro Fac Used RIF Installer . | . . . . . . . . . . . . . . . . . . . . . . Robots Hacked . | . . . . . . . . . . . . . . . . . . . . . . Non-combat . | . . . . . . . . . . . . . . . . . . . . . . Combat . | . . . . . . . . . . . . . . . . . . . . . . Robot Hacks Applied . | . . . . . . . . . . . . . . . . . . . . . . Relay Couplers Released 112 | . . . . . . 23 . 19 . 15 . 18 . 37 . . . . . . . Machine Destruction 112 | . . . . . . 23 . 19 . 15 . 18 . 37 . . . . . . . Fabnet Peak Effective % . | . . . . . . . . . . . . . . . . . . . . . . Robots Rewired 6 | . . . . . . . . . . 5 . . . . . 1 . . . . . Allies Hacked . | . . . . . . . . . . . . . . . . . . . . . . Hacks Repelled . | . . . . . . . . . . . . . . . . . . . . . . Allies | -11 -10 -10 -10 -9 -8 -8 -8 -8 -7 -7 -7 -7 -7 -7 -7 -6 -6 -6 -6 -5 -5 -------- Run | Yrd Mat Min Exi Min Mat Gar Mat Gar Fac Gar Fac Gar Fac Gar Fac Fac Low Low Dat Pro Fac Total Allies 16 | . . . . . . . . . 6 7 . 2 . . . 1 . . . . . Largest Group 5 | . . . . . . . . . 3 5 5 5 2 . . 1 . . . . . Highest-Rated Group 175 | . . . . . . . . . 93 157 99 175 175 . . 30 . . . . . Highest-Rated Ally 95 | . . . . . . . . . 31 95 31 95 95 . . 30 . . . . . Total Orders 4 | . . . . . . . . . . . . 2 . . . . . . . 2 . STAY 1 | . . . . . . . . . . . . 1 . . . . . . . . . FOLLOW 1 | . . . . . . . . . . . . 1 . . . . . . . . . EXPLORE 2 | . . . . . . . . . . . . . . . . . . . . 2 . Ally Attacks 119 | . . . . . . . . . 49 17 . 39 14 . . . . . . . . Total Damage 3127 | . . . . . . . . . 605 1222 . 566 734 . . . . . . . . Kills 20 | . . . . . . . . . 2 9 . 3 6 . . . . . . . . Allies Corrupted 2 | . . . . . . . . . 1 1 . . . . . . . . . . . Allies Melted . | . . . . . . . . . . . . . . . . . . . . . . Intel | -11 -10 -10 -10 -9 -8 -8 -8 -8 -7 -7 -7 -7 -7 -7 -7 -6 -6 -6 -6 -5 -5 ------- Run | Yrd Mat Min Exi Min Mat Gar Mat Gar Fac Gar Fac Gar Fac Gar Fac Fac Low Low Dat Pro Fac Robot Analysis Total 5 | . 4 . . . . . . . . . . . . . . 1 . . . . . Derelict Logs Recovered 7 | . . 1 . 1 . . . . . . . . . . . . 2 1 . 2 . Drone Launches 3 | . . . . . . . . . . . . . . . . . . . . 3 . Drone Recoveries 3 | . . . . . . . . . . . . . . . . . . . . 3 . Exploration | -11 -10 -10 -10 -9 -8 -8 -8 -8 -7 -7 -7 -7 -7 -7 -7 -6 -6 -6 -6 -5 -5 ------------- Run | Yrd Mat Min Exi Min Mat Gar Mat Gar Fac Gar Fac Gar Fac Gar Fac Fac Low Low Dat Pro Fac Turns Passed 20063 | 78 640 731 408 404 347 2736 543 1321 1685 1812 182 1503 1054 1833 483 1571 638 424 131 877 662 Spaces Moved 10217 | 50 353 493 288 287 177 1127 186 602 916 840 111 734 594 977 271 825 332 235 78 456 285 Core 16 | 15 . . . . . . . . . . . . . . . . . . . . 1 Treads 264 | 35 229 . . . . . . . . . . . . . . . . . . . . Legs 3 | . . . . . . . . . . . . . . . . . . . . . 3 Wheels 9934 | . 124 493 288 287 177 1127 186 602 916 840 111 734 594 977 271 825 332 235 78 456 281 Hover . | . . . . . . . . . . . . . . . . . . . . . . Flight . | . . . . . . . . . . . . . . . . . . . . . . Fastest Speed 50 | 50 140 140 140 140 140 145 240 165 160 160 160 160 160 160 160 160 165 155 170 170 130 Average Speed 165 | 127 152 140 140 140 146 190 248 171 161 160 160 162 160 160 160 165 172 169 170 170 176 Slowest Speed 1350 | 160 160 140 140 140 230 275 255 240 165 160 160 175 160 175 160 255 255 170 170 170 1350 Overloaded Moves . | . . . . . . . . . . . . . . . . . . . . . . Propulsion Burnouts . | . . . . . . . . . . . . . . . . . . . . . . Robots Hopped . | . . . . . . . . . . . . . . . . . . . . . . Cave-ins Triggered . | . . . . . . . . . . . . . . . . . . . . . . Exploration Rate (%) 48 | 4 59 91 69 63 14 99 11 80 26 95 4 78 14 83 7 19 58 50 68 66 9 Regions Visited 21 Branch Regions 7 Pre-discovered Areas 3 | . . . 1 . . . . . . . . . . . . . 1 . 1 . . Known Exits Taken 8 | . . . . . 1 . 1 . 1 . 1 . 1 . . 1 . 1 . 1 . Unknown Exits Taken 8 | 1 1 1 1 1 . . . . . . . . . . 1 . 1 . 1 . . Scrap Searched 9 | . . 1 . . . . . . . . . . . . . . 3 1 . 4 . Spaces Dug 37 | . 6 . . . . 8 . 7 . 3 . 2 11 . . . . . . . . Terrain Destroyed 1777 | . 49 . . . 6 230 12 84 51 328 7 188 18 591 . 40 10 27 . 8 128 Melee 18 | . . . . . . 6 . 7 . 3 . 2 . . . . . . . . . Projectile 103 | . . . . . 6 15 12 2 16 . . . 4 4 . 15 10 1 . 8 10 AOE 1656 | . 49 . . . . 209 . 75 35 325 7 186 14 587 . 25 . 26 . . 118 Terrain Rammed . | . . . . . . . . . . . . . . . . . . . . . . Walls Destroyed . | . . . . . . . . . . . . . . . . . . . . . . Machines Disabled . | . . . . . . . . . . . . . . . . . . . . . . Actions | -11 -10 -10 -10 -9 -8 -8 -8 -8 -7 -7 -7 -7 -7 -7 -7 -6 -6 -6 -6 -5 -5 --------- Run | Yrd Mat Min Exi Min Mat Gar Mat Gar Fac Gar Fac Gar Fac Gar Fac Fac Low Low Dat Pro Fac Total 12417 | 69 404 516 294 289 235 1482 241 781 1050 1196 116 949 671 1162 319 993 383 255 77 530 405 Wait 578 | . 4 10 . . 29 66 29 6 37 63 . 38 30 40 39 83 23 7 . 41 33 Move 10196 | 49 352 492 287 286 176 1126 185 601 915 839 110 733 593 976 270 824 331 234 77 455 285 Hop . | . . . . . . . . . . . . . . . . . . . . . . Pick Up 151 | 12 11 5 5 2 4 27 4 7 9 13 1 9 4 2 2 14 4 1 . 4 11 Fast Attach 41 | . 1 . . . 4 6 . 2 8 8 . 4 2 . 1 1 1 1 . 1 1 Attach 137 | 6 . . . . 2 16 1 15 4 15 2 6 6 14 2 15 7 2 . 2 22 Detach 62 | . . . . . . 5 . 12 3 9 1 4 3 15 1 2 2 1 . . 4 Swap 96 | . 7 . . 1 3 7 3 9 6 16 . 17 3 7 2 2 4 2 . 5 2 Drop 125 | 2 1 . 2 . 4 28 3 11 15 20 1 13 5 2 1 8 2 2 . 4 1 Fire 591 | . 28 9 . . 13 124 11 26 48 87 1 63 25 69 . 25 9 5 . 17 31 Melee 135 | . . . . . . 21 5 52 5 14 . 14 . 21 1 . . . . 1 1 Ram . | . . . . . . . . . . . . . . . . . . . . . . Kick . | . . . . . . . . . . . . . . . . . . . . . . Crush . | . . . . . . . . . . . . . . . . . . . . . . Escape Stasis 238 | . . . . . . 56 . 40 . 64 . 48 . 16 . . . . . . 14 Rewire 67 | . . . . . . . . . . 48 . . . . . 19 . . . . . Trap . | . . . . . . . . . . . . . . . . . . . . . . Miscellaneous . | . . . . . . . . . . . . . . . . . . . . . . Route ------- -11/Scrapyard -10/Materials (discovered 3 exits: [*Mat] / [*Min x2]) -10/Mines (discovered 3 exits: [*Mat x2] / *Exi) -10/Exiles -9/Mines -8/Materials (discovered 3 exits: Fac x2 / Gar) -8/Garrison (discovered 3 exits: *Mat x3) -8/Materials -8/Garrison (discovered 2 exits: *Fac x2) -7/Factory (discovered 5 exits: *Fac / Sto / *Low x2 / Gar) -7/Garrison (discovered 4 exits: *Fac x4) -7/Factory -7/Garrison (discovered 3 exits: *Fac x3) -7/Factory -7/Garrison (discovered 3 exits: *Fac x3) -7/Factory -6/Factory (discovered 2 exits: *Low x2) -6/Lower Caves -6/Lower Caves -6/Data Miner -5/Proximity Caves -5/Factory History --------- Turn | Location | Event 13 | -11/Scrapyard | Discovered new exit (range 15) 79 | -11/Scrapyard | Entered Materials 264 | -10/Materials | Discovered new exit (range 9) 312 | -10/Materials | Build established: Mutant 398 | -10/Materials | Discovered new exit (range 12) 469 | -10/Materials | Discovered new exit (range 14) 719 | -10/Materials | Entered Mines 764 | -10/Mines | Met a Derelict bent on vengeance 788 | -10/Mines | Discovered new exit (range 6) 788 | -10/Mines | Discovered new exit (range 9) 945 | -10/Mines | Deemed a non-threat by the Exiles lab entrance 945 | -10/Mines | Discovered new exit (range 5) 1198 | -10/Mines | Learned 4 Materials zone layouts 1308 | -10/Mines | Received a Rocket Launcher from a helpful Derelict 1450 | -10/Mines | Entered Exiles 1488 | -10/Exiles | Met 8R-AWN 1508 | -10/Exiles | Met EX-HEX 1558 | -10/Exiles | Met EX-DEC 1582 | -10/Exiles | Learned location of Zion (-7) 1607 | -10/Exiles | Met EX-BIN 1627 | -10/Exiles | Aligned with FarCom system 1628 | -10/Exiles | Given EX-Vault access code 1660 | -10/Exiles | Opened EX-Vault 1670 | -10/Exiles | Found Latent Energy Streamer 1701 | -10/Exiles | Warned to stay clear of 0b10 Research branches 1847 | -10/Exiles | Discovered new exit (range 10) 1858 | -10/Exiles | Left Exiles lab with Latent Energy Streamer 1858 | -10/Exiles | Entered Mines 1913 | -9/Mines | A weapon hastily lodged in a ceiling crevice suddenly fell to the ground 2002 | -9/Mines | Learned location of 1 exit from Proximity Caves 2008 | -9/Mines | Found a damaged Exp. Sensor Array with a note attached 2011 | -9/Mines | Found Prototype Device 2197 | -9/Mines | Discovered new exit (range 8) 2262 | -9/Mines | Entered Materials 2262 | -8/Materials | Evolved 4 slots: Utility x3, Weapon x1 2263 | -8/Materials | Identified exit to Factory 2520 | -8/Materials | Garrison activated, responded to threat 2598 | -8/Materials | Identified exit to Garrison 2609 | -8/Materials | Entered Garrison 2789 | -8/Garrison | Triggered checkpoint 2819 | -8/Garrison | Garrison Relay disabled 2999 | -8/Garrison | Triggered checkpoint 3031 | -8/Garrison | Triggered checkpoint 3042 | -8/Garrison | Triggered checkpoint 3119 | -8/Garrison | Lost 5 parts (2n2u1w) 3133 | -8/Garrison | Triggered checkpoint 3336 | -8/Garrison | Phase Generator disabled 3382 | -8/Garrison | Discovered new exit (range 7) 3553 | -8/Garrison | Build established: Skirmisher 3751 | -8/Garrison | Triggered checkpoint 3815 | -8/Garrison | Garrison Relay disabled 3991 | -8/Garrison | Discovered new exit (range 11) 4209 | -8/Garrison | Triggered checkpoint 4249 | -8/Garrison | Garrison Relay disabled 4396 | -8/Garrison | Triggered checkpoint 4444 | -8/Garrison | Spotted B-75 Beast 4529 | -8/Garrison | Destroyed B-75 Beast 4556 | -8/Garrison | Lost 3 parts (1n1u1w) 4704 | -8/Garrison | Discovered new exit (range 9) 4745 | -8/Garrison | Garrison Relay disabled 5345 | -8/Garrison | Entered Materials 5728 | -8/Materials | Identified Exp. Sensor Array 5881 | -8/Materials | Identified exit to Garrison 5888 | -8/Materials | Entered Garrison 5948 | -8/Garrison | Build established: Mutant 6024 | -8/Garrison | Triggered checkpoint 6133 | -8/Garrison | Garrison Relay disabled 6232 | -8/Garrison | Triggered checkpoint 6271 | -8/Garrison | Destroyed 7 combat bots 6271 | -8/Garrison | Triggered checkpoint 6271 | -8/Garrison | Triggered checkpoint 6425 | -8/Garrison | Garrison Relay disabled 6488 | -8/Garrison | Discovered exit to Factory (range 15) 6568 | -8/Garrison | Triggered checkpoint 6659 | -8/Garrison | Garrison Relay disabled 6703 | -8/Garrison | Triggered checkpoint 6793 | -8/Garrison | Discovered exit to Factory (range 13) 6956 | -8/Garrison | Triggered checkpoint 7023 | -8/Garrison | Garrison Relay disabled 7209 | -8/Garrison | Entered Factory 7209 | -7/Factory | Evolved 2 slots: Utility x2 7587 | -7/Factory | Discovered new exit (range 15) 7831 | -7/Factory | Identified exit to Storage 7831 | -7/Factory | Identified exit to Lower Caves 8192 | -7/Factory | Fabricated G-47 Trooper? 8409 | -7/Factory | First assault squad dispatched 8459 | -7/Factory | Lost 3 allies 8642 | -7/Factory | Allied Derelicts emerged from ambush trap array 8826 | -7/Factory | Garrison activated, responded to threat 8892 | -7/Factory | Identified exit to Garrison 8894 | -7/Factory | Entered Garrison 8988 | -7/Garrison | Triggered checkpoint 9073 | -7/Garrison | Destroyed 10 combat bots 9159 | -7/Garrison | Triggered checkpoint 9272 | -7/Garrison | Triggered checkpoint 9279 | -7/Garrison | Triggered checkpoint 9316 | -7/Garrison | Build established: Tank 9378 | -7/Garrison | Discovered new exit (range 10) 9668 | -7/Garrison | Triggered checkpoint 9762 | -7/Garrison | Garrison Relay disabled 9873 | -7/Garrison | Triggered checkpoint 9976 | -7/Garrison | Discovered new exit (range 11) 10024 | -7/Garrison | Triggered checkpoint 10024 | -7/Garrison | Found embedded Infiltrators 10062 | -7/Garrison | Garrison Relay disabled 10172 | -7/Garrison | Triggered checkpoint 10264 | -7/Garrison | Garrison Relay disabled 10312 | -7/Garrison | Discovered new exit (range 10) 10348 | -7/Garrison | Triggered checkpoint 10633 | -7/Garrison | Triggered checkpoint 10648 | -7/Garrison | Discovered new exit (range 15) 10706 | -7/Garrison | Entered Factory 10706 | -7/Factory | Accompanied by 5 allies 10887 | -7/Factory | Identified exit to Garrison 10888 | -7/Factory | Entered Garrison 10888 | -7/Garrison | Accompanied by 5 allies 10985 | -7/Garrison | Build established: Commander-Mutant 11021 | -7/Garrison | Triggered checkpoint 11025 | -7/Garrison | Triggered checkpoint 11092 | -7/Garrison | Spotted B-75 Beast 11110 | -7/Garrison | Destroyed B-75 Beast 11142 | -7/Garrison | Lost 5 allies 11516 | -7/Garrison | Triggered checkpoint 11553 | -7/Garrison | Build established: Mutant 11673 | -7/Garrison | Triggered checkpoint 11686 | -7/Garrison | Triggered checkpoint 11710 | -7/Garrison | Destroyed 12 combat bots 11750 | -7/Garrison | Discovered new exit (range 12) 11928 | -7/Garrison | Discovered new exit (range 10) 11963 | -7/Garrison | Garrison Relay disabled 12112 | -7/Garrison | Triggered checkpoint 12234 | -7/Garrison | Discovered new exit (range 15) 12305 | -7/Garrison | Found Unknown Protection 12305 | -7/Garrison | Identified Hvy. Reflective Plating 12322 | -7/Garrison | Found embedded Infiltrators 12377 | -7/Garrison | Garrison Relay disabled 12391 | -7/Garrison | Entered Factory 12391 | -7/Factory | Accompanied by 2 allies 12670 | -7/Factory | Repaired Huge Storage Unit? 12694 | -7/Factory | Build established: Gunner 13191 | -7/Factory | First assault squad dispatched 13370 | -7/Factory | Cargo convoy interrupted 13384 | -7/Factory | Garrison activated, responded to threat 13419 | -7/Factory | Destroyed 10 combat bots 13443 | -7/Factory | Identified exit to Garrison 13445 | -7/Factory | Entered Garrison 13461 | -7/Garrison | Triggered checkpoint 13576 | -7/Garrison | Triggered checkpoint 13602 | -7/Garrison | Destroyed 9 combat bots 13694 | -7/Garrison | Triggered checkpoint 13787 | -7/Garrison | Triggered checkpoint 13975 | -7/Garrison | Triggered checkpoint 14010 | -7/Garrison | Garrison Relay disabled 14053 | -7/Garrison | Triggered checkpoint 14128 | -7/Garrison | Build established: Mutant 14249 | -7/Garrison | Garrison Relay disabled 14302 | -7/Garrison | Discovered new exit (range 12) 14329 | -7/Garrison | Triggered checkpoint 14364 | -7/Garrison | Garrison Relay disabled 14510 | -7/Garrison | Discovered new exit (range 12) 14611 | -7/Garrison | Triggered checkpoint 14666 | -7/Garrison | Garrison Relay disabled 14762 | -7/Garrison | Phase Generator disabled 14920 | -7/Garrison | Build established: Gunner 14996 | -7/Garrison | Discovered new exit (range 12) 15199 | -7/Garrison | Triggered checkpoint 15221 | -7/Garrison | Garrison Relay disabled 15278 | -7/Garrison | Entered Factory 15452 | -7/Factory | Build established: Mutant 15651 | -7/Factory | Discovered new exit (range 13) 15678 | -7/Factory | First assault squad dispatched 15761 | -7/Factory | Entered another Factory area 15761 | -6/Factory | Evolved 2 slots: Utility x1, Weapon x1 16112 | -6/Factory | Build established: Gunner 16461 | -6/Factory | First assault squad dispatched 16830 | -6/Factory | Identified exit to Lower Caves 17055 | -6/Factory | Garrison activated, responded to threat 17332 | -6/Factory | Entered Lower Caves 17340 | -6/Lower Caves | Met a Warlord Commander 17341 | -6/Lower Caves | Learned location of Warlord (-4) 17342 | -6/Lower Caves | Warlord Commander delivered Encrypted Comm Array 17346 | -6/Lower Caves | Found Unknown Device 17347 | -6/Lower Caves | Identified Encrypted Comm Array 17403 | -6/Lower Caves | Learned Factory security intel 17415 | -6/Lower Caves | Encountered a Warlord checkpoint 17537 | -6/Lower Caves | Learned Factory security intel 17950 | -6/Lower Caves | Discovered new exit (range 7) 17970 | -6/Lower Caves | Entered another Lower Caves area 18158 | -6/Lower Caves | Identified exit to Data Miner 18394 | -6/Lower Caves | Entered Data Miner 18394 | -6/Data Miner | Discovered new exit (range 6) 18427 | -6/Data Miner | Met Data Miner 18459 | -6/Data Miner | Learned location of Section 7 (-2) 18459 | -6/Data Miner | Acquired the access code to Warlord's prototype stash 18486 | -6/Data Miner | Received God Mode back door access code from Data Miner 18525 | -6/Data Miner | Entered Proximity Caves 18526 | -5/Proximity Caves | Identified exit to Factory 18575 | -5/Proximity Caves | Found Alien Artifact 18923 | -5/Proximity Caves | Learned Factory terminal intel 18955 | -5/Proximity Caves | Attracted the attention of an 0b10 checkpoint 19402 | -5/Proximity Caves | Entered Factory 19402 | -5/Factory | Evolved 2 slots: Utility x1, Weapon x1 19404 | -5/Factory | Loaded intel: 28 terminal locations 19663 | -5/Factory | Build established: Tank 19886 | -5/Factory | Cargo convoy interrupted 19911 | -5/Factory | System corruption reached 10% 20004 | -5/Factory | Core integrity fell below 50% 20012 | -5/Factory | Destroyed 7 combat bots 20031 | -5/Factory | Lost 24 parts (2p6n7u9w) 20031 | -5/Factory | Core integrity fell below 20% 20063 | -5/Factory | Identified Dimensional Node Initializer 20063 | -5/Factory | Initialized slip node 20064 | -5/Factory | Core destroyed Last Messages --------------- U-05 Engineer builds a Wall. R-10 Processor collects Imp. Remote Datajack. U-05 Engineer builds a Wall. Penetrated by Slug. Wheel destroyed. R YU>IL